Cogmind - Beta 15 @@@ ROGUE MODE // 2025.06.30 @ 10:48:07 Player: Asimov Result: Destroyed by Autobeam Turret with Autobeam Performance ------------- Evolutions (0) 0 Regions Visited (3) 600 Robots Destroyed (8) 40 Value Destroyed (189) 189 Prototype IDs (0) 0 Alien Tech Used (0) 0 Bonus (0) 0 TOTAL SCORE: 829 Bonus ------- None Cogmind --------- Core Integrity 0/250 Matter 288/300 Energy 100/100 System Corruption 0% Temperature Cool (12) Movement Core (150) Ox2 Location -10/Subcaves Parts ------- > --- POWER (1) -------- (None) > --- PROPULSION (2) --- (None) > --- UTILITY (2) ------ Small Storage Unit Core Shielding > --- WEAPON (2) ------- Medium Laser > --- INVENTORY (8) ---- Structural Scanner Experimental Sensor Array Signal Interpreter ECM Suite Peak State ------------ > --- POWER ------------ Light Ion Engine > --- PROPULSION ------- Compact Wheel Compact Wheel > --- UTILITY ---------- Small Storage Unit Core Shielding > --- WEAPON ----------- EM Pulse Gun Light Assault Rifle > --- INVENTORY -------- Light Ion Engine Structural Scanner Experimental Sensor Array Signal Interpreter ECM Suite EM Pulse Gun Medium Laser [Rating: 8] Favorites ----------- Power Light Ion Engine Engine Light Ion Engine Propulsion Compact Wheel Wheel Compact Wheel Utility Small Storage Unit Storage Small Storage Unit Protection Core Shielding Weapon EM Pulse Gun Energy Gun EM Pulse Gun Ballistic Gun Light Assault Rifle Build | -11 -10 -10 -10 ------- Run | Yrd Mat Min Sub Slots Evolved . | . . . . Power . | . . . . Propulsion . | . . . . Utility . | . . . . Weapon . | . . . . Parts Attached 10 | 6 1 . 3 Power 2 | 1 . . 1 Engine 2 | 1 . . 1 Core . | . . . . Reactor . | . . . . Propulsion 2 | 2 . . . Treads . | . . . . Leg . | . . . . Wheel 2 | 2 . . . Hover . | . . . . Flight . | . . . . Utility 2 | 1 1 . . Device . | . . . . Storage 1 | 1 . . . Processor . | . . . . Hackware . | . . . . Protection 1 | . 1 . . Artifact . | . . . . Weapon 4 | 2 . . 2 Energy Gun 3 | 1 . . 2 Energy Cannon . | . . . . Ballistic Gun 1 | 1 . . . Ballistic Cannon . | . . . . Launcher . | . . . . Special Weapon . | . . . . Impact Weapon . | . . . . Slashing Weapon . | . . . . Piercing Weapon . | . . . . Special Melee Weapon . | . . . . Unidentified Prototypes . | . . . . Parts Lost 7 | . . . 7 Power 2 | . . . 2 Propulsion 2 | . . . 2 Utility . | . . . . Weapon 3 | . . . 3 Highest Loss Streak 7 | . . . 7 To Critical Strikes . | . . . . Average Backups 4 | 1 4 6 6 Power . | . 1 1 . Propulsion . | . . . . Utility 2 | . 1 3 4 Weapon 1 | . 1 2 1 Tool/Special . | . . . . Unused Backups 4 | . . . 4 Power . | . . . . Propulsion . | . . . . Utility 4 | . . . 4 Weapon . | . . . . Tool/Special . | . . . . Average Slot Usage (%) 94 | . 96 100 88 Engine 13 | . 14 14 11 Wheel 25 | . 28 28 21 Storage 14 | . 14 14 14 Protection 12 | . 10 14 14 Energy Gun 14 | . 14 14 14 Ballistic Gun 13 | . 14 14 11 Peak Build Rating 8 | 6 7 8 8 Average Rating 6 | 5 6 7 7 On Entrance 5 | . 6 7 8 Naked Turns . | . . . . Heaviest Build 13 | 11 12 12 13 Greatest Support 32 | 32 32 32 32 Greatest Overweight (x) 4 | 1 . . 4 Average Overweight (x) . | . . . . Largest Inventory Capacity 8 | 8 8 8 8 Average Capacity 7 | 7 8 8 8 Most Carried 7 | 2 6 7 7 Average Carried 4 | 1 4 6 6 Final Capacity 8 | 8 8 8 8 Final Carried 7 | 2 6 7 4 Class Distribution -------------------- 100% | Mutant Dominant Class ---------------- Mutant | -10/Materials Mutant | -10/Mines Mutant | -10/Subcaves Resources | -11 -10 -10 -10 ----------- Run | Yrd Mat Min Sub Matter Collected 294 | 204 74 . 16 Remotely . | . . . . Salvage Created 262 | . 197 . 65 Parts 17 | . 9 . 8 Haulers Intercepted . | . . . . Recyclers Shooed . | . . . . Parts Field Recycled . | . . . . Retrieved Matter . | . . . . Parts Self-Destructed 6 | . . . 6 Prevented 2 | . . . 2 Kills | -11 -10 -10 -10 ------- Run | Yrd Mat Min Sub Combat Hostiles Destroyed 8 | . 4 . 4 Guns 8 | . 4 . 4 Classes Destroyed 2 | . 1 . 1 Swarmer 4 | . . . 4 Grunt 4 | . 4 . . Best Kill Streak 4 | . 4 . 4 Combat Bots Only 4 | . 4 . 4 Max Kills in Single Turn 1 | . 1 . 1 Gunslinging . | . . . . Exploded . | . . . . Melee . | . . . . Uniques/NPCs Destroyed . | . . . . Combat | -11 -10 -10 -10 -------- Run | Yrd Mat Min Sub Hostile Shots Fired 172 | . 9 . 163 Missed 76 | . 2 . 74 Hits 96 | . 7 . 89 Projectile 96 | . 7 . 89 Critical Strikes 1 | . 1 . . Damage Taken 733 | . 102 . 631 Core 250 | . 34 . 216 Absorbed by Shields . | . . . . Redirected to Shielding 44 | . 7 . 37 Core Remaining (%) 100 | 100 . . . Volleys Fired 26 | . 8 . 18 Largest 2 | . 2 . 2 Hottest 90 | . 60 . 90 Shots Fired 44 | . 16 . 28 Gun 44 | . 16 . 28 Cannon . | . . . . Launcher . | . . . . Special . | . . . . Kinetic 24 | . 8 . 16 Thermal 2 | . . . 2 Explosive . | . . . . Electromagnetic 18 | . 8 . 10 Robot Hit Streak 6 | . 6 . 4 Robot Miss Streak 5 | . 1 . 5 Penetration Max . | . . . . Secondary Targets 2 | . . . 2 Max Gunslinging Chain 1 | . . . 1 Shots Hit Robots 26 | . 13 . 13 Core Hits 16 | . 9 . 7 Critical Kills . | . . . . Critical Parts Destroyed . | . . . . Critical Strikes 1 | . 1 . . Corrupt 1 | . 1 . . Melee Attacks . | . . . . Impact . | . . . . Slashing . | . . . . Piercing . | . . . . Sneak Attacks . | . . . . Combat Hostiles . | . . . . Follow-up Attacks . | . . . . Damage Inflicted 307 | . 133 . 174 Guns 307 | . 133 . 174 Cannons . | . . . . Explosions . | . . . . Melee . | . . . . Ramming . | . . . . Kinetic 133 | . 50 . 83 Thermal 13 | . . . 13 Explosive . | . . . . Electromagnetic 161 | . 83 . 78 Impact . | . . . . Slashing . | . . . . Piercing . | . . . . Highest Corruption . | . . . . Average Corruption . | . . . . Corruption Purged . | . . . . Corruption Blocked . | . . . . Overload Shots . | . . . . Overflow Damage . | . . . . Projectiles . | . . . . Explosions . | . . . . Melee . | . . . . Knockbacks . | . . . . Impact . | . . . . Kinetic . | . . . . Secondary . | . . . . Self-Inflicted Damage . | . . . . Shots . | . . . . Rammed . | . . . . Targets Rammed . | . . . . Kicked . | . . . . Crushed . | . . . . Highest Temperature 109 | . 109 . 24 Average Temperature 42 | . 48 . 13 Received Heat Transfer 492 | . 78 . 414 Siege Activations . | . . . . Martial Activations . | . . . . Shielding Activations . | . . . . Robots Disrupted . | . . . . Combat Hostiles . | . . . . Robots Corrupted . | . . . . Combat Hostiles . | . . . . Parts Fried . | . . . . Impact Corruptions . | . . . . Robots Melted . | . . . . Combat Hostiles . | . . . . Parts Melted . | . . . . Heat Transferred 37 | . . . 37 Parts Sabotaged . | . . . . Parts Stolen . | . . . . Parts Stripped . | . . . . Power Chain Reactions . | . . . . Alert | -11 -10 -10 -10 ------- Run | Yrd Mat Min Sub Maximum Alert Level . | . . . . Low Security (%) 100 | 100 100 100 . Level 1 . | . . . . Level 2 . | . . . . Level 3 . | . . . . Level 4 . | . . . . Level 5 . | . . . . High Security . | . . . . Max Security . | . . . . Peak Influence 80 | . 80 15 . Initial 15 | . . 15 . Average 14 | . 24 3 . Influence Increases 245 | . 90 . 155 Destroy 0b10 Robot/C 160 | . 80 . 80 Destroy Leader 10 | . 10 . . Lose Combat Pursuer 75 | . . . 75 Influence Decreases 200 | . 50 40 110 Entered New Map 25 | . . 25 . Time Decay 105 | . 50 15 40 Lost Part 70 | . . . 70 Squads Dispatched . | . . . . Investigation . | . . . . Extermination . | . . . . Reinforcement . | . . . . Assault . | . . . . Garrison . | . . . . Intercept . | . . . . Searches Triggered . | . . . . Construction Impeded . | . . . . Haulers Reinforced . | . . . . Active Scanning Responses . | . . . . Cargo Convoy Interrupts . | . . . . Stealth | -11 -10 -10 -10 --------- Run | Yrd Mat Min Sub Distress Signals 1 | . 1 . . Communications Jammed . | . . . . Distress Signals . | . . . . Times Spotted 16 | . 6 . 10 Peak Tracking Total 6 | . 5 . 6 Tactical Retreats 3 | . . . 3 Traps | -11 -10 -10 -10 ------- Run | Yrd Mat Min Sub Traps Triggered . | . . . . Indirectly . | . . . . Trap Hack Attempts . | . . . . Triggered . | . . . . Disarmed . | . . . . Reprogrammed . | . . . . Reused . | . . . . Traps Extracted . | . . . . Installed . | . . . . Triggered . | . . . . Machines | -11 -10 -10 -10 ---------- Run | Yrd Mat Min Sub Machines Disabled 1 | . . . 1 Max in Single Turn 1 | . . . 1 Machines Repaired . | . . . . Machines Dismantled . | . . . . Machines Sabotaged . | . . . . Overloaded Fab Kills . | . . . . Hacking | -11 -10 -10 -10 --------- Run | Yrd Mat Min Sub Machines Accessed 2 | . 2 . . Terminals 2 | . 2 . . Fabricators . | . . . . Repair Stations . | . . . . Recycling Units . | . . . . Scanalyzers . | . . . . Garrison Access . | . . . . Total Hacks 2 | . 2 . . Successful 2 | . 2 . . Failed . | . . . . Catastrophic . | . . . . Database Lockouts . | . . . . Manual . | . . . . Terminals 2 | . 2 . . Fabricators . | . . . . Repair Stations . | . . . . Recycling Units . | . . . . Scanalyzers . | . . . . Garrison Access . | . . . . Terminal Hacks 2 | . 2 . . Record 1 | . 1 . . Zone Layout 1 | . 1 . . Fabricator Hacks . | . . . . Repair Station Hacks . | . . . . Recycling Unit Hacks . | . . . . Scanalyzer . | . . . . Garrison Access Hacks . | . . . . Unauthorized Hacks . | . . . . Terminals . | . . . . Fabricators . | . . . . Repair Stations . | . . . . Recycling Units . | . . . . Scanalyzers . | . . . . Garrison Access . | . . . . Data Cores Recovered . | . . . . Used . | . . . . Hacking Detections 2 | . 2 . . Full Trace Events . | . . . . Feedback Events . | . . . . Feedback Blocked . | . . . . Robot Schematics Acquired . | . . . . Robots Built . | . . . . Authchips . | . . . . Time . | . . . . Total Robot Build Rating . | . . . . Part Schematics Acquired . | . . . . Parts Built . | . . . . Authchips . | . . . . Time . | . . . . Total Part Build Rating . | . . . . Parts Repaired . | . . . . Time . | . . . . Parts Recycled . | . . . . Recycled Matter . | . . . . Retrieved Matter . | . . . . Retrieved Components . | . . . . Parts Scanalyzed . | . . . . Part Schematics Acquired . | . . . . Parts Damaged . | . . . . Bothacking | -11 -10 -10 -10 ------------ Run | Yrd Mat Min Sub Used RIF Installer . | . . . . Robots Hacked . | . . . . Non-combat . | . . . . Combat . | . . . . Robot Hacks Applied . | . . . . Relay Couplers Released . | . . . . Fabnet Peak Effective % . | . . . . Robots Rewired . | . . . . Allies Hacked . | . . . . Hacks Repelled . | . . . . Allies | -11 -10 -10 -10 -------- Run | Yrd Mat Min Sub Total Allies . | . . . . Largest Group . | . . . . Highest-Rated Group . | . . . . Highest-Rated Ally . | . . . . Total Orders . | . . . . Ally Attacks . | . . . . Total Damage . | . . . . Kills . | . . . . Allies Corrupted . | . . . . Allies Melted . | . . . . Intel | -11 -10 -10 -10 ------- Run | Yrd Mat Min Sub Active Infowar (turns) . | . . . . Robot Analysis Total . | . . . . Derelict Logs Recovered 2 | . . 1 1 Drone Launches . | . . . . Drone Recoveries . | . . . . Exploration | -11 -10 -10 -10 ------------- Run | Yrd Mat Min Sub Turns Passed 648 | 84 274 118 172 Spaces Moved 549 | 75 246 116 112 Core 18 | 5 . . 13 Treads . | . . . . Legs . | . . . . Wheels 531 | 70 246 116 99 Hover . | . . . . Flight . | . . . . Fastest Speed 50 | 50 100 100 100 Average Speed 102 | 98 100 100 112 Slowest Speed 250 | 100 100 100 250 Overloaded Moves . | . . . . Propulsion Burnouts . | . . . . Robots Hopped . | . . . . Potential Cave-ins . | . . . . Cave-ins Triggered . | . . . . Exploration Rate (%) 15 | 4 36 17 6 Regions Visited 3 Branch Regions 2 Pre-discovered Areas . | . . . . Known Exits Taken . | . . . . Unknown Exits Taken 3 | 1 1 1 . Scrap Searched . | . . . . Spaces Dug . | . . . . Terrain Destroyed . | . . . . Melee . | . . . . Projectile . | . . . . AOE . | . . . . Terrain Rammed . | . . . . Walls Destroyed . | . . . . Machines Disabled . | . . . . Actions | -11 -10 -10 -10 --------- Run | Yrd Mat Min Sub Total 592 | 82 259 118 133 Wait 2 | . . 2 . Move 546 | 74 245 115 112 Hop . | . . . . Pick Up 8 | 2 5 1 . Fast Attach 6 | 6 . . . Attach 4 | . 1 . 3 Detach . | . . . . Swap . | . . . . Drop . | . . . . Fire 26 | . 8 . 18 Melee . | . . . . Ram . | . . . . Kick . | . . . . Crush . | . . . . Escape Stasis . | . . . . Rewire . | . . . . Trap . | . . . . Miscellaneous . | . . . . Route ------- -11/Scrapyard -10/Materials -10/Mines -10/Subcaves (discovered 1 exit: [*Rec]) History --------- Turn | Location | Event 12 | -11/Scrapyard | Discovered new exit (range 15) 85 | -11/Scrapyard | Entered Materials 301 | -10/Materials | Build established: Mutant 325 | -10/Materials | Discovered new exit (range 14) 359 | -10/Materials | Entered Mines 371 | -10/Mines | Learned location of 1 exit from Materials 390 | -10/Mines | Assembled infested the area 395 | -10/Mines | Assisted by a Guerilla fighting off Assembled 395 | -10/Mines | Found a damaged Exp. Sensor Array with a note attached 396 | -10/Mines | Met a Derelict bent on vengeance 433 | -10/Mines | Found Prototype Device 468 | -10/Mines | Discovered new exit (range 6) 477 | -10/Mines | Entered Subcaves 478 | -10/Subcaves | Approached by a straggling Scientist 483 | -10/Subcaves | A swath of the cavern ceiling suddenly collapsed 544 | -10/Subcaves | Learned Materials non-interactive machine intel 570 | -10/Subcaves | Discovered new exit (range 13) 609 | -10/Subcaves | Core integrity fell below 50% 634 | -10/Subcaves | Core integrity fell below 20% 649 | -10/Subcaves | Destroyed by Autobeam Turret with Autobeam Last Messages --------------- repair. 00597_ Lgt. Assault Rifle fries itself beyond repair. 00597_ Subatomizers dissect the Flight Unit. 00597_ EM Pulse Gun destroyed. 00597_ S-10 Pest destroyed. 00600_ Acquired 1 matter. 00608_ Subatomizers dissect the Flight Unit. 00609_ Acquired 1 matter. 00612_ Com. Wheel destroyed. 00612_ Lgt. Assault Rifle destroyed. 00617_ Acquired 8 matter. 00621_ Subatomizers dissect the Flight Unit. 00623_ Machine disabled. XC-YZ0(c): "I think it's somewhere southwest of here" 00633_ EM Pulse Gun destroyed. 00635_ Subatomizers dissect the Flight Unit. 00649_ Lgt. Ion Engine destroyed. Map ----- +----------------------------------------------------+ | ?????????????????????????????????????????????????? | | ?????????????????#####???#########???????????????? | | ????????????????###""????#""##" ##??????????????? | | ????????????## ##""#"##??#"#"""# #??????????????? | | ???????????? #"#"##?##"### #??????????????? | | ??????????????# ###""""#######" #??????????????? | | ???????????????##"#"#""#""#### #??????????????? | | ???????????????#"""""###"" ""# ###????????????? | | ???????????????###"##"""##"##" #????????????? | | ???????????????##"##"# ######" #????????????? | | ???????????????###"""#"####?## ####????????????? | | ?????????????????#"#"## #"##?#####???????????????? | | ?????????????????# ###?# ##?####???????????????? | | ????????????????## ##?# ## #???????????????? | | ????????????????# ### #???????????????? | | ????????????????# ###???????????????? | | ????????????????# ####?####????????????? | | ????????????????# c ####? """????????????? | | ????????????????## ##? # "????????????? | | ?????????????????# ##? # "#???????????? | | ?????????????????# ### t""????????????? | | ?????????????????# = <#??????????? | | ?????????????????# %[ ""????????????? | | ?????????????????## % # #???????????? | | ??????????????????# ##??? "#???????????? | | ??????????????????# @ #???????????????????? | | ??????????????????# ### #??????????????????? | | ??????????????????# #?## #??????????????????? | | ?????????????????# ##???# #?????????????????? | | ?????????????????#####????? #????????????????? | | ??????????????????????????? ???????????????? | | ??????????????????????????? ?????????????? | | ???????????????????????????? ????????????? | | ???????????????????????????? ### ???????????? | | ???????????????????????????? #??? ???????????? | | ?????????????????????????????? #???? ????????????? | | ??????????????????????????????? ?????????????????? | | ??????????????????????????????? ?????????????????? | | ???????????????????????????????? ????????????????? | | ?????????????????????????????????????????????????? | | ?????????????????????????????????????????????????? | | ?????????????????????????????????????????????????? | | ?????????????????????????????????????????????????? | | ?????????????????????????????????????????????????? | | ?????????????????????????????????????????????????? | | ?????????????????????????????????????????????????? | | ?????????????????????????????????????????????????? | | ?????????????????????????????????????????????????? | | ?????????????????????????????????????????????????? | | ?????????????????????????????????????????????????? | +----------------------------------------------------+ Best States ------------- Heat Dissipation 25 Energy Generation 10 Energy Capacity 125 Matter Stores 300 Matter Capacity 300 Sight Range 16 Terrain Scan Density 10 Core Shielding 20 Evasion (%) 40 Item Schematics ----------------- None Robot Schematics ------------------ None Fabricated ------------ Nothing Repaired ---------- Nothing Alien Tech Used ----------------- None Achievements -------------- None Challenges ------------ None Game ------ Seed HackingRefineryMatterbank Manual? 0 Play Time 00:09:58 Cumulative 10.9 hours Start 2025.06.30 @ 10:31:59 End 2025.06.30 @ 10:48:07 Sessions 1 Manual Loads 0 Difficulty Rogue Special Mode None Game No. 29 Rogue 29 Adventurer 0 Explorer 0 Win Type - Total 0 Types 0/0/0/0/0/0/0/0/0/0 Lore% 9 Gallery% 16 Achievement% 12 Wizard Run 0 Options --------- Layout 1 ASCII 0 Keyboard 0 Movement Arrows Keybinds 0 Fullscreen 1 Font 24/Smallcaps Map View 50x35 Zoom Use 0% Tactical HUD 1 Map Filters NONE Filters NONE Steam 1 RUN: 9f5c5682-7711-4997-9030-00deefa41287